[Event "Early-Titled-Tuesday-Blitz-January-30-2024"]
[Site "Chess.com"]
[Date "2024.01.30"]
[Round "5"]
[White "HelvertHernandez"]
[Black "LeoWin2012"]
[Result "1-0"]
[WhiteElo "1880"]
[BlackElo "2187"]
[TimeControl "180+1"]
[EndTime "8:58:25 PST"]
[Termination "HelvertHernandez won by checkmate"]

1. e4 {[%clk 0:03:00.9]} 1... c5 {[%clk 0:02:58.5]} 2. Nf3 {[%clk 0:02:59.9]}
2... d6 {[%clk 0:02:57.3]} 3. d4 {[%clk 0:02:59.3]} 3... cxd4 {[%clk 0:02:58.2]}
4. Nxd4 {[%clk 0:02:59.4]} 4... Nf6 {[%clk 0:02:57.4]} 5. Nc3 {[%clk 0:02:59.3]}
5... a6 {[%clk 0:02:57.5]} 6. Be3 {[%clk 0:02:58.7]} 6... e5 {[%clk 0:02:57]} 7.
Nb3 {[%clk 0:02:58]} 7... Be6 {[%clk 0:02:57.2]} 8. f3 {[%clk 0:02:57.9]} 8...
Nbd7 {[%clk 0:02:55.5]} 9. Qd2 {[%clk 0:02:57.9]} 9... b5 {[%clk 0:02:50.3]} 10.
g4 {[%clk 0:02:53.8]} 10... Qc7 {[%clk 0:02:39.7]} 11. O-O-O {[%clk 0:02:50.6]}
11... Rc8 {[%clk 0:02:37.2]} 12. g5 {[%clk 0:02:43.8]} 12... Nh5 {[%clk
0:02:34.1]} 13. Kb1 {[%clk 0:02:37.9]} 13... Nb6 {[%clk 0:02:33]} 14. Nd5 {[%clk
0:02:11.9]} 14... Bxd5 {[%clk 0:02:31.1]} 15. exd5 {[%clk 0:02:11.3]} 15... Nc4
{[%clk 0:02:31.3]} 16. Bxc4 {[%clk 0:02:07.8]} 16... Qxc4 {[%clk 0:02:32.2]} 17.
Na5 {[%clk 0:02:04.1]} 17... Qa4 {[%clk 0:02:24.5]} 18. Nc6 {[%clk 0:01:55.1]}
18... Be7 {[%clk 0:02:11.7]} 19. h4 {[%clk 0:01:52]} 19... Bd8 {[%clk
0:01:53.9]} 20. b3 {[%clk 0:01:37.7]} 20... Qa3 {[%clk 0:01:48.9]} 21. Qc3
{[%clk 0:01:23.2]} 21... Ng3 {[%clk 0:00:43.3]} 22. Rhe1 {[%clk 0:01:18.8]}
22... f6 {[%clk 0:00:31.5]} 23. gxf6 {[%clk 0:01:14.8]} 23... gxf6 {[%clk
0:00:30.4]} 24. f4 {[%clk 0:01:13.9]} 24... Ne4 {[%clk 0:00:22.2]} 25. Qd3
{[%clk 0:01:06.8]} 25... f5 {[%clk 0:00:05.3]} 26. fxe5 {[%clk 0:01:02.6]} 26...
dxe5 {[%clk 0:00:05.3]} 27. Bc1 {[%clk 0:00:46.9]} 27... Qc5 {[%clk 0:00:04.4]}
28. Rxe4 {[%clk 0:00:46]} 28... fxe4 {[%clk 0:00:04.4]} 29. Qxe4 {[%clk
0:00:46.3]} 29... Qd6 {[%clk 0:00:02.3]} 30. Nxe5 {[%clk 0:00:44.8]} 30... Be7
{[%clk 0:00:02]} 31. Nc6 {[%clk 0:00:39.8]} 31... Kd7 {[%clk 0:00:02]} 32. Bf4
{[%clk 0:00:36.7]} 32... Qc5 {[%clk 0:00:02.4]} 33. Qe6+ {[%clk 0:00:35.5]}
33... Ke8 {[%clk 0:00:02.9]} 34. Re1 {[%clk 0:00:28.6]} 34... Kf8 {[%clk
0:00:02.3]} 35. Qxe7+ {[%clk 0:00:27]} 35... Qxe7 {[%clk 0:00:02.5]} 36. Rxe7
{[%clk 0:00:26.7]} 36... Re8 {[%clk 0:00:02.3]} 37. d6 {[%clk 0:00:24.1]} 37...
Rxe7 {[%clk 0:00:02.4]} 38. dxe7+ {[%clk 0:00:23.7]} 38... Ke8 {[%clk
0:00:03.1]} 39. Bg5 {[%clk 0:00:23.8]} 39... Rg8 {[%clk 0:00:03.6]} 40. Nd4
{[%clk 0:00:21.2]} 40... Rg6 {[%clk 0:00:03.6]} 41. Nf5 {[%clk 0:00:19.9]} 41...
h6 {[%clk 0:00:03.9]} 42. Nxh6 {[%clk 0:00:16.9]} 42... Re6 {[%clk 0:00:02.7]}
43. Nf5 {[%clk 0:00:16.6]} 43... Re1+ {[%clk 0:00:02.9]} 44. Kb2 {[%clk
0:00:16.5]} 44... Re6 {[%clk 0:00:03.8]} 45. Ng7+ {[%clk 0:00:16.4]} 45... Kd7
{[%clk 0:00:02.2]} 46. Nxe6 {[%clk 0:00:16.7]} 46... a5 {[%clk 0:00:02]} 47. Ng7
{[%clk 0:00:16.5]} 47... Kd6 {[%clk 0:00:02.5]} 48. e8=Q {[%clk 0:00:16.5]}
48... b4 {[%clk 0:00:03.2]} 49. Qe6+ {[%clk 0:00:16.7]} 49... Kc5 {[%clk
0:00:03.3]} 50. Be3+ {[%clk 0:00:16.9]} 50... Kb5 {[%clk 0:00:04]} 51. Qd5+
{[%clk 0:00:16.7]} 51... Ka6 {[%clk 0:00:03.7]} 52. Qc6# {[%clk 0:00:17]} 1-0

[Event "Early-Titled-Tuesday-Blitz-January-30-2024"]
[Site "Chess.com"]
[Date "2024.01.30"]
[Round "5"]
[White "TokChess"]
[Black "salomez"]
[Result "1-0"]
[WhiteElo "2522"]
[BlackElo "2308"]
[TimeControl "180+1"]
[EndTime "8:58:27 PST"]
[Termination "TokChess won on time"]

1. e4 {[%clk 0:03:00.9]} 1... c5 {[%clk 0:02:59]} 2. Nf3 {[%clk 0:03:00.8]} 2...
e6 {[%clk 0:02:58.6]} 3. d4 {[%clk 0:03:00]} 3... cxd4 {[%clk 0:02:58.2]} 4.
Nxd4 {[%clk 0:03:00.9]} 4... Nf6 {[%clk 0:02:57.8]} 5. Bd3 {[%clk 0:02:59.5]}
5... Nc6 {[%clk 0:02:57.3]} 6. Nf3 {[%clk 0:02:55.4]} 6... d5 {[%clk 0:02:55.6]}
7. Nbd2 {[%clk 0:02:51.9]} 7... Bc5 {[%clk 0:02:53.7]} 8. O-O {[%clk 0:02:51]}
8... Bd7 {[%clk 0:02:20.1]} 9. exd5 {[%clk 0:02:50]} 9... Nxd5 {[%clk
0:02:18.8]} 10. Ne4 {[%clk 0:02:49.7]} 10... Be7 {[%clk 0:02:16]} 11. Bg5 {[%clk
0:02:36.3]} 11... f6 {[%clk 0:02:14.3]} 12. Bd2 {[%clk 0:02:33.1]} 12... Qb6
{[%clk 0:02:12.1]} 13. a3 {[%clk 0:02:19]} 13... O-O {[%clk 0:02:09.1]} 14. c4
{[%clk 0:02:15.3]} 14... Nc7 {[%clk 0:02:05]} 15. b4 {[%clk 0:02:07]} 15... Nd4
{[%clk 0:01:57.4]} 16. Nxd4 {[%clk 0:01:54.8]} 16... Qxd4 {[%clk 0:01:56.8]} 17.
Bc3 {[%clk 0:01:55.7]} 17... Qb6 {[%clk 0:01:55.3]} 18. c5 {[%clk 0:01:54.1]}
18... Qc6 {[%clk 0:01:51]} 19. Qe2 {[%clk 0:01:41.7]} 19... Nd5 {[%clk
0:01:42.6]} 20. Bd2 {[%clk 0:01:38]} 20... Rad8 {[%clk 0:01:41]} 21. Rac1 {[%clk
0:01:27.4]} 21... a6 {[%clk 0:01:15]} 22. Bc4 {[%clk 0:01:09.3]} 22... Kh8
{[%clk 0:01:03.7]} 23. Rfd1 {[%clk 0:01:04.1]} 23... Be8 {[%clk 0:00:55.4]} 24.
Nc3 {[%clk 0:00:43.9]} 24... Nxc3 {[%clk 0:00:46.4]} 25. Bxc3 {[%clk 0:00:44.8]}
25... Bf7 {[%clk 0:00:43.8]} 26. Rxd8 {[%clk 0:00:38.6]} 26... Rxd8 {[%clk
0:00:44.7]} 27. Re1 {[%clk 0:00:38.9]} 27... Qd7 {[%clk 0:00:27.1]} 28. h3
{[%clk 0:00:36.5]} 28... Kg8 {[%clk 0:00:12]} 29. Bxe6 {[%clk 0:00:34]} 29...
Bxe6 {[%clk 0:00:09.7]} 30. Qxe6+ {[%clk 0:00:34.9]} 30... Qxe6 {[%clk
0:00:10.1]} 31. Rxe6 {[%clk 0:00:35.7]} 31... Kf7 {[%clk 0:00:10.8]} 32. Rb6
{[%clk 0:00:29.4]} 32... Rd3 {[%clk 0:00:10.6]} 33. Be1 {[%clk 0:00:29.8]} 33...
Rxa3 {[%clk 0:00:08]} 34. Rxb7 {[%clk 0:00:29.2]} 34... Ra1 {[%clk 0:00:06.8]}
35. Kf1 {[%clk 0:00:29.1]} 35... Rc1 {[%clk 0:00:07.4]} 36. Ke2 {[%clk
0:00:26.2]} 36... Ke6 {[%clk 0:00:07.7]} 37. Rb6+ {[%clk 0:00:24.9]} 37... Kd5
{[%clk 0:00:06.6]} 38. Rxa6 {[%clk 0:00:25.8]} 38... Kc4 {[%clk 0:00:02.8]} 39.
Rb6 {[%clk 0:00:24.7]} 39... Rc2+ {[%clk 0:00:02.9]} 40. Bd2 {[%clk 0:00:24.2]}
40... f5 {[%clk 0:00:02.5]} 41. g3 {[%clk 0:00:15.7]} 41... Bg5 {[%clk
0:00:02.2]} 42. f4 {[%clk 0:00:15.8]} 42... Bf6 {[%clk 0:00:03.1]} 43. Kd1
{[%clk 0:00:13.7]} 43... Kb3 {[%clk 0:00:02.1]} 44. Rd6 {[%clk 0:00:12.4]} 44...
Ra2 {[%clk 0:00:01.3]} 45. c6 {[%clk 0:00:12.4]} 45... Ra1+ {[%clk 0:00:01.7]}
46. Ke2 {[%clk 0:00:12.3]} 46... Ra7 {[%clk 0:00:01.8]} 47. Rd7 {[%clk
0:00:10.5]} 1-0

[Event "Early-Titled-Tuesday-Blitz-January-30-2024"]
[Site "Chess.com"]
[Date "2024.01.30"]
[Round "5"]
[White "VincentKeymer"]
[Black "SchmakAttack"]
[Result "1-0"]
[WhiteElo "3061"]
[BlackElo "2741"]
[TimeControl "180+1"]
[EndTime "8:58:28 PST"]
[Termination "VincentKeymer won on time"]

1. Nf3 {[%clk 0:03:00.9]} 1... Nf6 {[%clk 0:02:57.7]} 2. c4 {[%clk 0:02:58.6]}
2... g6 {[%clk 0:02:54.9]} 3. Nc3 {[%clk 0:02:54.9]} 3... Bg7 {[%clk 0:02:54.8]}
4. g3 {[%clk 0:02:55.4]} 4... O-O {[%clk 0:02:53.3]} 5. Bg2 {[%clk 0:02:55.6]}
5... d6 {[%clk 0:02:53.3]} 6. d4 {[%clk 0:02:55.3]} 6... c5 {[%clk 0:02:47.7]}
7. d5 {[%clk 0:02:54.9]} 7... e6 {[%clk 0:02:44.3]} 8. O-O {[%clk 0:02:55.1]}
8... exd5 {[%clk 0:02:42.3]} 9. cxd5 {[%clk 0:02:56]} 9... Re8 {[%clk
0:02:27.2]} 10. Re1 {[%clk 0:02:55.7]} 10... a6 {[%clk 0:02:17.1]} 11. a4 {[%clk
0:02:55.2]} 11... Ne4 {[%clk 0:02:16.2]} 12. Nxe4 {[%clk 0:02:55.2]} 12... Rxe4
{[%clk 0:02:17.1]} 13. Qc2 {[%clk 0:02:55.8]} 13... Rb4 {[%clk 0:01:52.6]} 14.
Ra2 {[%clk 0:02:50.6]} 14... b5 {[%clk 0:01:31.4]} 15. e4 {[%clk 0:02:29.2]}
15... Nd7 {[%clk 0:01:25.5]} 16. Bf4 {[%clk 0:02:27.3]} 16... Qe7 {[%clk
0:01:17.9]} 17. axb5 {[%clk 0:02:23.2]} 17... Rxb5 {[%clk 0:01:17.6]} 18. e5
{[%clk 0:02:23.8]} 18... dxe5 {[%clk 0:01:08.6]} 19. d6 {[%clk 0:02:06.1]} 19...
Qe6 {[%clk 0:01:06.9]} 20. Nxe5 {[%clk 0:01:44.9]} 20... Bb7 {[%clk 0:01:00.9]}
21. Bxb7 {[%clk 0:01:08.5]} 21... Rxb7 {[%clk 0:01:01.8]} 22. Qc4 {[%clk
0:01:08.8]} 22... Nxe5 {[%clk 0:00:54.1]} 23. Qxe6 {[%clk 0:01:04.9]} 23... Nf3+
{[%clk 0:00:54.2]} 24. Kg2 {[%clk 0:01:05.1]} 24... fxe6 {[%clk 0:00:54.5]} 25.
Kxf3 {[%clk 0:01:04.7]} 25... Kf7 {[%clk 0:00:44.9]} 26. Re2 {[%clk 0:01:03.8]}
26... a5 {[%clk 0:00:39.1]} 27. Rc2 {[%clk 0:00:55.4]} 27... Bd4 {[%clk
0:00:33.9]} 28. Be3 {[%clk 0:00:51.1]} 28... Bxe3 {[%clk 0:00:19.1]} 29. fxe3
{[%clk 0:00:43.4]} 29... Rb5 {[%clk 0:00:19.3]} 30. Ke4 {[%clk 0:00:26.5]} 30...
Ke8 {[%clk 0:00:13.8]} 31. Ra1 {[%clk 0:00:11.9]} 31... Kd7 {[%clk 0:00:13.6]}
32. Rd2 {[%clk 0:00:10.6]} 32... Rf8 {[%clk 0:00:11.4]} 33. Rc1 {[%clk
0:00:07.3]} 33... Rf5 {[%clk 0:00:09.9]} 34. g4 {[%clk 0:00:07.3]} 34... Rb4+
{[%clk 0:00:06.3]} 35. Kd3 {[%clk 0:00:07.6]} 35... Re5 {[%clk 0:00:06.4]} 36.
h3 {[%clk 0:00:03.9]} 36... Kxd6 {[%clk 0:00:04.6]} 37. Ke2+ {[%clk 0:00:03.4]}
37... Rd5 {[%clk 0:00:04.5]} 38. Rdc2 {[%clk 0:00:02.9]} 38... Rb3 {[%clk
0:00:04.2]} 39. Rf1 {[%clk 0:00:02.9]} 39... Re5 {[%clk 0:00:04.1]} 40. Rf3
{[%clk 0:00:03.5]} 40... Kc6 {[%clk 0:00:04.4]} 41. Kf2 {[%clk 0:00:04]} 41...
Kb5 {[%clk 0:00:04.2]} 42. h4 {[%clk 0:00:04.4]} 42... Re4 {[%clk 0:00:03]} 43.
Rf7 {[%clk 0:00:01.8]} 43... Rxg4 {[%clk 0:00:02]} 44. Rxh7 {[%clk 0:00:02.2]}
44... Rc4 {[%clk 0:00:01.1]} 45. Rb7+ {[%clk 0:00:02.2]} 45... Kc6 {[%clk
0:00:01.6]} 46. Rxc4 {[%clk 0:00:02.3]} 46... Rxb7 {[%clk 0:00:01.6]} 47. Rg4
{[%clk 0:00:01.9]} 47... Rxb2+ {[%clk 0:00:01.6]} 48. Kg3 {[%clk 0:00:02.2]} 1-0

[Event "Early-Titled-Tuesday-Blitz-January-30-2024"]
[Site "Chess.com"]
[Date "2024.01.30"]
[Round "5"]
[White "cthulhuuu"]
[Black "Sjakkerntobi"]
[Result "0-1"]
[WhiteElo "2348"]
[BlackElo "2516"]
[TimeControl "180+1"]
[EndTime "8:58:29 PST"]
[Termination "Sjakkerntobi won by resignation"]

1. e4 {[%clk 0:03:00]} 1... e6 {[%clk 0:03:00]} 2. d3 {[%clk 0:03:00.2]} 2... d5
{[%clk 0:03:00.2]} 3. Nd2 {[%clk 0:03:01]} 3... c5 {[%clk 0:02:59.6]} 4. Ngf3
{[%clk 0:03:01.6]} 4... Nc6 {[%clk 0:02:59.6]} 5. g3 {[%clk 0:03:01.9]} 5... Nf6
{[%clk 0:02:59.7]} 6. Bg2 {[%clk 0:03:02.1]} 6... Be7 {[%clk 0:03:00.4]} 7. O-O
{[%clk 0:03:02.2]} 7... O-O {[%clk 0:03:00.9]} 8. e5 {[%clk 0:03:03]} 8... Nd7
{[%clk 0:03:00.9]} 9. Re1 {[%clk 0:03:03.9]} 9... b5 {[%clk 0:03:00.8]} 10. h4
{[%clk 0:03:04.1]} 10... Bb7 {[%clk 0:02:58]} 11. Nf1 {[%clk 0:03:03.2]} 11...
Qc7 {[%clk 0:02:57.9]} 12. Bf4 {[%clk 0:03:03]} 12... Rfc8 {[%clk 0:02:57.7]}
13. Ne3 {[%clk 0:03:02.7]} 13... Qd8 {[%clk 0:02:57.6]} 14. h5 {[%clk
0:03:00.9]} 14... h6 {[%clk 0:02:57.6]} 15. Ng4 {[%clk 0:03:00.5]} 15... Bf8
{[%clk 0:02:57.2]} 16. c3 {[%clk 0:03:00.4]} 16... a5 {[%clk 0:02:57.3]} 17. Qd2
{[%clk 0:02:49.8]} 17... b4 {[%clk 0:02:55.7]} 18. Ngh2 {[%clk 0:02:44.2]} 18...
a4 {[%clk 0:02:54.4]} 19. a3 {[%clk 0:02:42.3]} 19... bxc3 {[%clk 0:02:51.6]}
20. bxc3 {[%clk 0:02:42.4]} 20... Na5 {[%clk 0:02:48]} 21. Rab1 {[%clk
0:02:22.8]} 21... Nb3 {[%clk 0:02:46.4]} 22. Qe3 {[%clk 0:02:23.1]} 22... d4
{[%clk 0:02:41]} 23. cxd4 {[%clk 0:02:19.8]} 23... cxd4 {[%clk 0:02:40.9]} 24.
Nxd4 {[%clk 0:02:14.6]} 24... Bxg2 {[%clk 0:02:41.8]} 25. Nxb3 {[%clk
0:01:55.7]} 25... Bd5 {[%clk 0:02:26.4]} 26. Nd2 {[%clk 0:01:55.8]} 26... Bxa3
{[%clk 0:02:25.5]} 27. Ne4 {[%clk 0:01:51]} 27... Be7 {[%clk 0:02:14.6]} 28. Ng4
{[%clk 0:01:50.3]} 28... Bxe4 {[%clk 0:02:11.8]} 29. Qxe4 {[%clk 0:01:49.3]}
29... Bg5 {[%clk 0:02:05.2]} 30. d4 {[%clk 0:01:15.9]} 30... Bxf4 {[%clk
0:01:59.8]} 31. Qxf4 {[%clk 0:01:16.8]} 31... a3 {[%clk 0:01:45.9]} 32. Ra1
{[%clk 0:01:16]} 32... Nb6 {[%clk 0:01:43.2]} 33. Reb1 {[%clk 0:00:52.9]} 33...
Nd5 {[%clk 0:01:40.7]} 34. Qf3 {[%clk 0:00:35.4]} 34... Rc3 {[%clk 0:01:21.7]}
35. Ne3 {[%clk 0:00:26.5]} 35... Rb8 {[%clk 0:00:43.7]} 36. Re1 {[%clk
0:00:20.1]} 36... Rbb3 {[%clk 0:00:35.7]} 37. Qe4 {[%clk 0:00:17.9]} 37... Rb4
{[%clk 0:00:25.3]} 38. Nxd5 {[%clk 0:00:17.5]} 38... Qxd5 {[%clk 0:00:25.9]} 39.
Qxd5 {[%clk 0:00:17.3]} 39... exd5 {[%clk 0:00:26.3]} 40. Red1 {[%clk
0:00:17.6]} 40... Kf8 {[%clk 0:00:23.9]} 41. Rd2 {[%clk 0:00:16.7]} 41... Ke7
{[%clk 0:00:23.1]} 42. Kg2 {[%clk 0:00:15.6]} 42... Ke6 {[%clk 0:00:23.2]} 43.
f4 {[%clk 0:00:13.6]} 43... Kf5 {[%clk 0:00:22.5]} 44. Rda2 {[%clk 0:00:12.5]}
44... Rb2+ {[%clk 0:00:18.1]} 45. Rxb2 {[%clk 0:00:10.5]} 45... axb2 {[%clk
0:00:19]} 46. Rb1 {[%clk 0:00:11]} 46... Rb3 {[%clk 0:00:18.7]} 47. Kf2 {[%clk
0:00:10.3]} 47... Ke4 {[%clk 0:00:19.2]} 48. Ke2 {[%clk 0:00:09.1]} 48... Kxd4
{[%clk 0:00:19]} 49. Kd2 {[%clk 0:00:09.1]} 49... Rxg3 {[%clk 0:00:19.3]} 50.
Rxb2 {[%clk 0:00:09.6]} 50... Rg2+ {[%clk 0:00:19.6]} 51. Kc1 {[%clk 0:00:10.2]}
51... Rxb2 {[%clk 0:00:20.5]} 52. Kxb2 {[%clk 0:00:10.7]} 52... Ke4 {[%clk
0:00:21.2]} 53. e6 {[%clk 0:00:07.5]} 53... fxe6 {[%clk 0:00:22.1]} 54. f5
{[%clk 0:00:07.4]} 54... exf5 {[%clk 0:00:23]} 0-1

[Event "Early-Titled-Tuesday-Blitz-January-30-2024"]
[Site "Chess.com"]
[Date "2024.01.30"]
[Round "5"]
[White "DreamsAreFake"]
[Black "OparinGrigoriy"]
[Result "0-1"]
[WhiteElo "2724"]
[BlackElo "3005"]
[TimeControl "180+1"]
[EndTime "8:58:31 PST"]
[Termination "OparinGrigoriy won by resignation"]

1. Nf3 {[%clk 0:02:55]} 1... c5 {[%clk 0:02:59.2]} 2. g3 {[%clk 0:02:53.1]} 2...
b6 {[%clk 0:02:57.8]} 3. Bg2 {[%clk 0:02:53.1]} 3... Bb7 {[%clk 0:02:58.5]} 4.
O-O {[%clk 0:02:52.7]} 4... Nf6 {[%clk 0:02:59.2]} 5. b3 {[%clk 0:02:52.7]} 5...
g6 {[%clk 0:02:59.3]} 6. Bb2 {[%clk 0:02:53]} 6... Bg7 {[%clk 0:03:00]} 7. c4
{[%clk 0:02:53.1]} 7... O-O {[%clk 0:03:00.5]} 8. Nc3 {[%clk 0:02:49.6]} 8... e6
{[%clk 0:02:58.8]} 9. d4 {[%clk 0:02:47.6]} 9... Qe7 {[%clk 0:02:55.4]} 10. e3
{[%clk 0:02:31.4]} 10... d6 {[%clk 0:02:53.5]} 11. Qe2 {[%clk 0:02:27.4]} 11...
Rd8 {[%clk 0:02:48.9]} 12. Rfd1 {[%clk 0:02:26.1]} 12... Nc6 {[%clk 0:02:40.1]}
13. Rac1 {[%clk 0:02:24]} 13... Rac8 {[%clk 0:02:37.9]} 14. h3 {[%clk 0:02:23]}
14... cxd4 {[%clk 0:02:30]} 15. exd4 {[%clk 0:02:22.9]} 15... d5 {[%clk
0:02:26.5]} 16. cxd5 {[%clk 0:02:06.4]} 16... exd5 {[%clk 0:02:27.4]} 17. Ne5
{[%clk 0:01:51]} 17... Qe6 {[%clk 0:01:59.2]} 18. Nxc6 {[%clk 0:01:31.5]} 18...
Qxe2 {[%clk 0:01:52.2]} 19. Nxe2 {[%clk 0:01:32.4]} 19... Bxc6 {[%clk
0:01:51.7]} 20. Rc2 {[%clk 0:01:15.9]} 20... Bb7 {[%clk 0:01:51.8]} 21. Rdc1
{[%clk 0:01:15.4]} 21... Rxc2 {[%clk 0:01:50.9]} 22. Rxc2 {[%clk 0:01:15.7]}
22... Rc8 {[%clk 0:01:51.6]} 23. Rxc8+ {[%clk 0:01:15.4]} 23... Bxc8 {[%clk
0:01:52.5]} 24. Nf4 {[%clk 0:01:14.4]} 24... Bb7 {[%clk 0:01:51.7]} 25. Nd3
{[%clk 0:01:10.4]} 25... Ne4 {[%clk 0:01:50.9]} 26. Ne5 {[%clk 0:01:03.4]} 26...
f6 {[%clk 0:01:48.4]} 27. Ng4 {[%clk 0:01:02.1]} 27... Kf7 {[%clk 0:01:47.6]}
28. Ne3 {[%clk 0:01:00.2]} 28... Ke6 {[%clk 0:01:44.4]} 29. Bf1 {[%clk
0:00:40.7]} 29... Bh6 {[%clk 0:01:40.5]} 30. Kg2 {[%clk 0:00:38.2]} 30... Bf8
{[%clk 0:01:35.2]} 31. Bd3 {[%clk 0:00:34.3]} 31... Bc6 {[%clk 0:01:31]} 32. f3
{[%clk 0:00:34.4]} 32... Nd6 {[%clk 0:01:30.3]} 33. a4 {[%clk 0:00:34.6]} 33...
Be7 {[%clk 0:01:28]} 34. Kf2 {[%clk 0:00:33.1]} 34... Nb7 {[%clk 0:01:26.8]} 35.
Ke2 {[%clk 0:00:31.3]} 35... Na5 {[%clk 0:01:25.6]} 36. Bc2 {[%clk 0:00:29.5]}
36... Bb7 {[%clk 0:01:26.1]} 37. Bc3 {[%clk 0:00:29.4]} 37... Nc6 {[%clk
0:01:25.6]} 38. Bd3 {[%clk 0:00:28.7]} 38... Nb4 {[%clk 0:01:25]} 39. Bxb4
{[%clk 0:00:25]} 39... Bxb4 {[%clk 0:01:25.9]} 40. Nc2 {[%clk 0:00:25.2]} 40...
Bc3 {[%clk 0:01:22.4]} 41. f4 {[%clk 0:00:24.6]} 41... Bc8 {[%clk 0:01:22]} 42.
Ke3 {[%clk 0:00:23.7]} 42... Kd6 {[%clk 0:01:22.2]} 43. g4 {[%clk 0:00:22.7]}
43... Bb2 {[%clk 0:01:21.1]} 44. Kd2 {[%clk 0:00:19.9]} 44... Bd7 {[%clk
0:01:20]} 45. Be2 {[%clk 0:00:16.6]} 45... Ke7 {[%clk 0:01:01.2]} 46. Bf3 {[%clk
0:00:16.9]} 46... Ke6 {[%clk 0:00:58.7]} 47. Be2 {[%clk 0:00:17]} 47... Kd6
{[%clk 0:00:58.8]} 48. Bf3 {[%clk 0:00:17.6]} 48... h6 {[%clk 0:00:55.1]} 49.
Be2 {[%clk 0:00:18]} 49... f5 {[%clk 0:00:54.5]} 50. Bf3 {[%clk 0:00:16.3]}
50... fxg4 {[%clk 0:00:53.9]} 51. hxg4 {[%clk 0:00:16.6]} 51... Be8 {[%clk
0:00:53]} 52. Be2 {[%clk 0:00:16.9]} 52... h5 {[%clk 0:00:52.8]} 53. gxh5 {[%clk
0:00:16.6]} 53... gxh5 {[%clk 0:00:53.7]} 54. Ke3 {[%clk 0:00:12.3]} 54... h4
{[%clk 0:00:50.4]} 55. Bd3 {[%clk 0:00:10.9]} 55... Bh5 {[%clk 0:00:47.4]} 56.
Kf2 {[%clk 0:00:10.2]} 56... Bd1 {[%clk 0:00:38.2]} 57. Kg2 {[%clk 0:00:08.9]}
57... Bxc2 {[%clk 0:00:38.4]} 58. Bxc2 {[%clk 0:00:09.7]} 58... Bxd4 {[%clk
0:00:39.1]} 59. Kh3 {[%clk 0:00:10.4]} 59... Bf6 {[%clk 0:00:39.5]} 60. Kg4
{[%clk 0:00:11.1]} 60... Kc5 {[%clk 0:00:36.7]} 61. Bd3 {[%clk 0:00:08.2]} 61...
Kd4 {[%clk 0:00:36.3]} 62. Bf1 {[%clk 0:00:07.2]} 62... Kc3 {[%clk 0:00:36.3]}
63. Kf5 {[%clk 0:00:07.7]} 63... Bd8 {[%clk 0:00:36.2]} 64. Ke6 {[%clk
0:00:07.4]} 64... d4 {[%clk 0:00:36.4]} 65. f5 {[%clk 0:00:07]} 65... d3 {[%clk
0:00:36.1]} 0-1

[Event "Early-Titled-Tuesday-Blitz-January-30-2024"]
[Site "Chess.com"]
[Date "2024.01.30"]
[Round "5"]
[White "azikom"]
[Black "atwalcb"]
[Result "1-0"]
[WhiteElo "2721"]
[BlackElo "2497"]
[TimeControl "180+1"]
[EndTime "8:58:31 PST"]
[Termination "azikom won on time"]

1. c4 {[%clk 0:02:58.9]} 1... e6 {[%clk 0:02:52.8]} 2. Nc3 {[%clk 0:02:57.8]}
2... d5 {[%clk 0:02:51.1]} 3. e3 {[%clk 0:02:53.1]} 3... Bb4 {[%clk 0:02:43]} 4.
Nf3 {[%clk 0:02:50.7]} 4... c5 {[%clk 0:02:26.6]} 5. cxd5 {[%clk 0:02:46.1]}
5... exd5 {[%clk 0:02:25.5]} 6. Bb5+ {[%clk 0:02:33.4]} 6... Bd7 {[%clk
0:02:07.3]} 7. Bxd7+ {[%clk 0:02:32]} 7... Qxd7 {[%clk 0:02:08.2]} 8. O-O {[%clk
0:02:32.6]} 8... Nc6 {[%clk 0:02:00.4]} 9. d4 {[%clk 0:02:30.6]} 9... Nf6 {[%clk
0:01:50]} 10. Ne2 {[%clk 0:02:28]} 10... c4 {[%clk 0:01:40.4]} 11. Bd2 {[%clk
0:02:27.5]} 11... Bd6 {[%clk 0:01:37.8]} 12. h3 {[%clk 0:02:13.1]} 12... O-O
{[%clk 0:01:35.6]} 13. Qc2 {[%clk 0:02:13.1]} 13... Rfe8 {[%clk 0:01:33]} 14.
Rfd1 {[%clk 0:02:03.4]} 14... b5 {[%clk 0:01:33]} 15. Be1 {[%clk 0:02:03.3]}
15... Rac8 {[%clk 0:01:17.2]} 16. a3 {[%clk 0:01:57.8]} 16... a5 {[%clk
0:01:14.3]} 17. Nc3 {[%clk 0:01:48.7]} 17... b4 {[%clk 0:01:12.6]} 18. axb4
{[%clk 0:01:49.2]} 18... axb4 {[%clk 0:01:12.5]} 19. Ne2 {[%clk 0:01:49.9]}
19... b3 {[%clk 0:01:07.6]} 20. Qb1 {[%clk 0:01:46.8]} 20... Ra8 {[%clk
0:01:06]} 21. Nc3 {[%clk 0:01:43.8]} 21... Nb4 {[%clk 0:01:02]} 22. Bd2 {[%clk
0:01:40]} 22... Nc2 {[%clk 0:00:53.9]} 23. Rxa8 {[%clk 0:01:32.5]} 23... Rxa8
{[%clk 0:00:54.8]} 24. Ne1 {[%clk 0:01:32.9]} 24... Ra1 {[%clk 0:00:54.6]} 25.
Qxa1 {[%clk 0:01:33.2]} 25... Nxa1 {[%clk 0:00:54.7]} 26. Rxa1 {[%clk
0:01:34.1]} 26... h6 {[%clk 0:00:50.9]} 27. Nf3 {[%clk 0:01:31.3]} 27... Bb4
{[%clk 0:00:47.8]} 28. Ra8+ {[%clk 0:01:28.3]} 28... Kh7 {[%clk 0:00:47.3]} 29.
Ne2 {[%clk 0:01:27.1]} 29... Bxd2 {[%clk 0:00:46.5]} 30. Nxd2 {[%clk 0:01:28]}
30... Qb7 {[%clk 0:00:40.7]} 31. Ra1 {[%clk 0:01:25.3]} 31... Qb4 {[%clk
0:00:32]} 32. Nc3 {[%clk 0:01:24.2]} 32... Qb7 {[%clk 0:00:28.1]} 33. g4 {[%clk
0:01:23.1]} 33... g5 {[%clk 0:00:26.6]} 34. Kg2 {[%clk 0:01:23]} 34... Kg6
{[%clk 0:00:26.1]} 35. Nf3 {[%clk 0:01:20.6]} 35... Ne4 {[%clk 0:00:24.4]} 36.
Ne5+ {[%clk 0:01:15.2]} 36... Kg7 {[%clk 0:00:23.9]} 37. Nxe4 {[%clk 0:01:15.6]}
37... dxe4 {[%clk 0:00:24.8]} 38. Nxc4 {[%clk 0:01:15]} 38... Qc6 {[%clk
0:00:18.6]} 39. Rc1 {[%clk 0:01:05.6]} 39... Qc8 {[%clk 0:00:10.5]} 40. Rc3
{[%clk 0:01:03.8]} 40... Qb7 {[%clk 0:00:07.6]} 41. Nd2 {[%clk 0:01:02.5]} 41...
f5 {[%clk 0:00:04.6]} 42. gxf5 {[%clk 0:01:01.4]} 42... Qd5 {[%clk 0:00:04.3]}
43. Rc7+ {[%clk 0:00:51]} 43... Kf8 {[%clk 0:00:02.9]} 44. Rc5 {[%clk
0:00:50.8]} 44... Qb7 {[%clk 0:00:02.8]} 45. Nc4 {[%clk 0:00:44.2]} 45... Qd7
{[%clk 0:00:02]} 46. Nd2 {[%clk 0:00:31.2]} 46... Qb7 {[%clk 0:00:01.9]} 47. Rc3
{[%clk 0:00:30.2]} 47... Qd5 {[%clk 0:00:01.8]} 48. Rc8+ {[%clk 0:00:29]} 48...
Kg7 {[%clk 0:00:01.8]} 49. Rc5 {[%clk 0:00:28.6]} 49... Qb7 {[%clk 0:00:01.6]}
50. Nc4 {[%clk 0:00:28.4]} 50... Kf8 {[%clk 0:00:01.8]} 51. Ne5 {[%clk
0:00:24.5]} 1-0